[Event "Ruzomberok GM 2019"]
[Site "Ruzomberok"]
[Date "2019.07.04"]
[Round "6.4"]
[White "Nayhebaver, Martin"]
[Black "Hrabusa, Matej"]
[Result "0-1"]
[ECO "B76"]
[WhiteElo "2473"]
[BlackElo "2397"]
[Annotator "ChessBase"]
[PlyCount "50"]
[EventDate "2019.06.29"]
[EventType "tourn"]
[EventCountry "SVK"]
[SourceTitle "playchess.com"]
[Source "ChessBase"]
[SourceQuality "1"]
[TimeControl "40/5400+30:1800+30"]

1. e4 {[%emt 0:02:13]} c5 {[%emt 0:00:00]} 2. Nf3 {[%emt 0:00:20]} d6 {[%emt 0:00:00]} 3. d4 {[%emt 0:00:33]} cxd4 {[%emt 0:00:00]} 4. Nxd4 {[%emt 0:00:04]} Nf6 {[%emt 0:00:00]} 5. Nc3 {[%emt 0:00:11]} g6 {[%emt 0:00:15]} 6. f3 {[%emt 0:01:12]} Bg7 {[%emt 0:01:00]} 7. Be3 {[%emt 0:00:48]} O-O {[%emt 0:00:23]} 8. Qd2 {[%emt 0:00:53]} Nc6 {[%emt 0:00:07]} 9. O-O-O {[%emt 0:03:37]} d5 {[%emt 0:01:58]} 10. Nxc6 {[%emt 0:00:43]} bxc6 {[%emt 0:00:08]} 11. Bh6 {[%emt 0:00:07]} Bxh6 {[%emt 0:04:07]} 12. Qxh6 {[%emt 0:00:19]} Rb8 {[%emt 0:01:39]} 13. h4 {[%emt 0:04:56]} Qa5 {[%emt 0:11:36]} 14. a3 {[%emt 0:37:00]} dxe4 {[%emt 0:14:51]} 15. Qg5 {[%emt 0:06:02]} Bf5 {[%emt 0:08:39]} 16. Nxe4 {[%emt 0:05:49]} Rxb2 {[%emt 0:07:47]} 17. Kxb2 {[%emt 0:02:39]} Rb8+ {[%emt 0:00:09]} 18. Kc1 {[%emt 0:12:08]} Qxa3+ {[%emt 0:00:41]} 19. Kd2 {[%emt 0:00:04]} Bxe4 {[%emt 0:00:52]} 20. Be2 {[%emt 0:02:21]} Bxc2 {[%emt 0:09:41]} 21. Ra1 {[%emt 0:02:01]} Qb4+ {[%emt 0:04:20]} 22. Ke3 {[%emt 0:02:09]} Qb6+ {[%emt 0:01:09]} 23. Kd2 {[%emt 0:01:02]} Qd4+ {[%emt 0:01:15]} 24. Kxc2 {[%emt 0:00:21]} Rb2+ {[%emt 0:00:51]} 25. Kc1 {[%emt 0:00:05]} Qc3+ {[%emt 0:00:06]} 0-1

[Event "Ruzomberok GM 2019"]
[Site "Ruzomberok"]
[Date "2019.07.04"]
[Round "6.5"]
[White "Pechac, Jergus"]
[Black "Manik, Mikulas"]
[Result "1-0"]
[ECO "A80"]
[WhiteElo "2473"]
[BlackElo "2399"]
[Annotator "ChessBase"]
[PlyCount "61"]
[EventDate "2019.06.29"]
[EventType "tourn"]
[EventCountry "SVK"]
[SourceTitle "playchess.com"]
[Source "ChessBase"]
[SourceQuality "1"]
[TimeControl "40/5400+30:1800+30"]

1. d4 {[%emt 0:00:52]} f5 {[%emt 0:00:00]} 2. Nc3 {[%emt 0:00:20]} Nf6 {[%emt 0:01:02]} 3. Bg5 {[%emt 0:00:07]} d5 {[%emt 0:00:11]} 4. Bxf6 {[%emt 0:00:21]} exf6 {[%emt 0:00:19]} 5. e3 {[%emt 0:00:07]} c6 {[%emt 0:03:12]} 6. Bd3 {[%emt 0:00:35]} Bd6 {[%emt 0:02:41]} 7. Qf3 {[%emt 0:01:39]} g6 {[%emt 0:00:36]} 8. Nge2 {[%emt 0:00:24]} Na6 {[%emt 0:19:48]} 9. a3 {[%emt 0:00:14]} Nc7 {[%emt 0:02:58]} 10. h3 {[%emt 0:04:54]} h5 {[%emt 0:00:49]} 11. O-O-O {[%emt 0:07:11]} Ne6 {[%emt 0:07:45]} 12. g4 {[%emt 0:07:29]} Ng5 {[%emt 0:02:26]} 13. Qg2 {[%emt 0:00:04]} fxg4 {[%emt 0:00:17]} 14. hxg4 {[%emt 0:00:05]} Bxg4 {[%emt 0:00:23]} 15. Qxg4 {[%emt 0:00:06]} hxg4 {[%emt 0:00:19]} 16. Rxh8+ {[%emt 0:00:07]} Bf8 {[%emt 0:00:27]} 17. Nf4 {[%emt 0:00:08]} Qa5 {[%emt 0:08:54]} 18. Bxg6+ {[%emt 0:15:35]} Kd7 {[%emt 0:11:24]} 19. Bf5+ {[%emt 0:09:41]} Kc7 {[%emt 0:00:26]} 20. Rg8 {[%emt 0:00:13]} Rb8 {[%emt 0:21:33]} 21. Rh1 {[%emt 0:04:46]} b5 {[%emt 0:11:23]} 22. Ne6+ {[%emt 0:00:06]} Nxe6 {[%emt 0:00:29]} 23. Bxe6 {[%emt 0:00:04]} b4 {[%emt 0:02:56]} 24. Rh7+ {[%emt 0:00:10]} Kb6 {[%emt 0:00:19]} 25. axb4 {[%emt 0:00:24]} Qxb4 {[%emt 0:00:59]} 26. Bxd5 {[%emt 0:01:15]} Bd6 {[%emt 0:00:37]} 27. Rg6 {[%emt 0:14:59]} Qa5 {[%emt 0:00:28]} 28. Rxf6 {[%emt 0:00:14]} Qa1+ {[%emt 0:00:24]} 29. Kd2 {[%emt 0:00:39]} Rd8 {[%emt 0:00:22]} 30. Be4 {[%emt 0:09:15]} Rf8 {[%emt 0:00:49]} 31. Nd5+ {[%emt 0:03:17]} 1-0

[Event "Ruzomberok GM 2019"]
[Site "Ruzomberok"]
[Date "2019.07.05"]
[Round "7.1"]
[White "Manik, Mikulas"]
[Black "Jurcik, Marian"]
[Result "1/2-1/2"]
[ECO "C11"]
[WhiteElo "2399"]
[BlackElo "2501"]
[Annotator "ChessBase"]
[PlyCount "64"]
[EventDate "2019.06.29"]
[EventType "tourn"]
[EventCountry "SVK"]
[SourceTitle "playchess.com"]
[Source "ChessBase"]
[SourceQuality "1"]
[TimeControl "40/5400+30:1800+30"]

1. e4 {[%emt 0:00:00]} e6 {[%emt 0:00:00]} 2. d4 {[%emt 0:00:00]} d5 {[%emt 0:00:00]} 3. Nc3 {[%emt 0:00:00]} Nf6 {[%emt 0:00:00]} 4. Bg5 {[%emt 0:00:00]} dxe4 {[%emt 0:01:07]} 5. Nxe4 {[%emt 0:00:00]} Bd7 {[%emt 0:00:28]} 6. Nf3 {[%emt 0:07:43]} Bc6 {[%emt 0:00:21]} 7. Bd3 {[%emt 0:01:46]} Be7 {[%emt 0:02:58]} 8. Bxf6 {[%emt 0:08:11]} Bxf6 {[%emt 0:09:15]} 9. c3 {[%emt 0:00:21]} Nd7 {[%emt 0:04:02]} 10. O-O {[%emt 0:04:30]} Bxe4 {[%emt 0:05:51]} 11. Bxe4 {[%emt 0:01:30]} c6 {[%emt 0:00:02]} 12. Re1 {[%emt 0:04:04]} O-O {[%emt 0:01:04]} 13. Qc2 {[%emt 0:00:38]} g6 {[%emt 0:00:18]} 14. Rad1 {[%emt 0:00:16]} Qc7 {[%emt 0:04:07]} 15. g3 {[%emt 0:02:27]} Bg7 {[%emt 0:04:33]} 16. Kg2 {[%emt 0:09:14]} Rad8 {[%emt 0:01:20]} 17. Qb3 {[%emt 0:06:07]} e5 {[%emt 0:11:04]} 18. dxe5 {[%emt 0:00:33]} Nxe5 {[%emt 0:00:05]} 19. Nxe5 {[%emt 0:00:34]} Bxe5 {[%emt 0:00:04]} 20. Rxd8 {[%emt 0:00:28]} Rxd8 {[%emt 0:00:07]} 21. Rd1 {[%emt 0:00:13]} Rxd1 {[%emt 0:00:33]} 22. Qxd1 {[%emt 0:00:07]} Kg7 {[%emt 0:00:25]} 23. Qb3 {[%emt 0:00:28]} Qb6 {[%emt 0:01:49]} 24. Qxb6 {[%emt 0:00:58]} axb6 {[%emt 0:00:02]} 25. f4 {[%emt 0:00:15]} Bd6 {[%emt 0:00:15]} 26. Kf3 {[%emt 0:00:10]} b5 {[%emt 0:00:18]} 27. a3 {[%emt 0:00:09]} f5 {[%emt 0:00:19]} 28. Bd3 {[%emt 0:00:09]} Kf6 {[%emt 0:00:13]} 29. h3 {[%emt 0:00:29]} h6 {[%emt 0:00:09]} 30. h4 {[%emt 0:00:17]} g5 {[%emt 0:00:34]} 31. hxg5+ {[%emt 0:00:05]} hxg5 {[%emt 0:00:04]} 32. fxg5+ {[%emt 0:00:07]} Ke5 {Ke4+} 1/2-1/2

[Event "Ruzomberok GM 2019"]
[Site "Ruzomberok"]
[Date "2019.07.05"]
[Round "7.2"]
[White "Hrabusa, Matej"]
[Black "Pechac, Jergus"]
[Result "0-1"]
[ECO "A13"]
[WhiteElo "2397"]
[BlackElo "2473"]
[Annotator "ChessBase"]
[PlyCount "50"]
[EventDate "2019.06.29"]
[EventType "tourn"]
[EventCountry "SVK"]
[SourceTitle "playchess.com"]
[Source "ChessBase"]
[SourceQuality "1"]
[TimeControl "40/5400+30:1800+30"]

1. Nf3 {[%emt 0:00:00]} Nf6 {[%emt 0:00:11]} 2. g3 {[%emt 0:00:09]} d5 {[%emt 0:00:46]} 3. c4 {[%emt 0:00:21]} e6 {[%emt 0:02:21]} 4. Bg2 {[%emt 0:00:19]} dxc4 {[%emt 0:00:13]} 5. O-O {[%emt 0:00:46]} a6 {[%emt 0:01:19]} 6. a4 {[%emt 0:01:29]} Nc6 {[%emt 0:03:16]} 7. Na3 {[%emt 0:13:41]} Na5 {[%emt 0:06:22]} 8. Qc2 {[%emt 0:05:35]} Qd5 {[%emt 0:00:49]} 9. Rd1 {[%emt 0:06:03]} Bd7 {[%emt 0:11:46]} 10. d3 {[%emt 0:04:44]} Nb3 {[%emt 0:04:20]} 11. Rb1 {[%emt 0:10:38]} Nxc1 {[%emt 0:00:42]} 12. Rbxc1 {[%emt 0:02:17]} Bxa3 {[%emt 0:01:07]} 13. bxa3 {[%emt 0:03:11]} Qa5 {[%emt 0:03:54]} 14. Qxc4 {[%emt 0:05:45]} Bxa4 {[%emt 0:00:25]} 15. Nd4 {[%emt 0:04:52]} Bxd1 {[%emt 0:05:50]} 16. Bxb7 {[%emt 0:01:42]} Qe1+ {[%emt 0:03:59]} 17. Kg2 {[%emt 0:00:48]} O-O {[%emt 0:08:43]} 18. Bxa8 {[%emt 0:03:03]} Ng4 {[%emt 0:04:34]} 19. Bf3 {[%emt 0:07:16]} Qxf2+ {[%emt 0:00:15]} 20. Kh3 {[%emt 0:00:06]} h5 {[%emt 0:00:12]} 21. Bxg4 {[%emt 0:00:36]} hxg4+ {[%emt 0:00:26]} 22. Kxg4 {[%emt 0:00:12]} Rd8 {[%emt 0:00:07]} 23. Nxe6 {[%emt 0:04:02]} Bxe2+ {[%emt 0:01:53]} 24. Kh3 {[%emt 0:01:11]} Qf5+ {[%emt 0:00:24]} 25. Kg2 {[%emt 0:00:11]} fxe6 {[%emt 0:00:19]} 0-1

[Event "Ruzomberok GM 2019"]
[Site "Ruzomberok"]
[Date "2019.07.05"]
[Round "7.3"]
[White "Petenyi, Tamas"]
[Black "Nayhebaver, Martin"]
[Result "1-0"]
[ECO "A00"]
[WhiteElo "2412"]
[BlackElo "2473"]
[Annotator "ChessBase"]
[PlyCount "89"]
[EventDate "2019.06.29"]
[EventType "tourn"]
[EventCountry "SVK"]
[SourceTitle "playchess.com"]
[Source "ChessBase"]
[SourceQuality "1"]
[TimeControl "40/5400+30:1800+30"]

1. g3 {[%emt 0:00:01]} Nf6 {[%emt 0:00:32]} 2. Bg2 {[%emt 0:00:05]} e6 {[%emt 0:00:30]} 3. Nf3 {[%emt 0:00:37]} Be7 {[%emt 0:00:51]} 4. O-O {[%emt 0:00:07]} O-O {[%emt 0:00:05]} 5. b3 {[%emt 0:01:02]} b6 {[%emt 0:01:47]} 6. Bb2 {[%emt 0:00:09]} Bb7 {[%emt 0:00:06]} 7. c4 {[%emt 0:00:44]} d5 {[%emt 0:00:55]} 8. cxd5 {[%emt 0:02:00]} exd5 {[%emt 0:02:39]} 9. d4 {[%emt 0:02:05]} Nbd7 {[%emt 0:01:45]} 10. Nbd2 {[%emt 0:02:29]} Re8 {[%emt 0:02:28]} 11. Ne5 {[%emt 0:00:45]} Nf8 {[%emt 0:01:18]} 12. Rc1 {[%emt 0:01:10]} c5 {[%emt 0:00:42]} 13. dxc5 {[%emt 0:09:11]} bxc5 {[%emt 0:06:12]} 14. Nd3 {[%emt 0:01:57]} Ne6 {[%emt 0:00:35]} 15. Bxf6 {[%emt 0:04:49]} Bxf6 {[%emt 0:01:21]} 16. Nxc5 {[%emt 0:03:26]} Nxc5 {[%emt 0:00:10]} 17. Rxc5 {[%emt 0:00:04]} Qe7 {[%emt 0:00:19]} 18. Rc2 {[%emt 0:13:20]} Ba6 {[%emt 0:06:42]} 19. Bf3 {[%emt 0:06:23]} Rad8 {[%emt 0:16:20]} 20. Re1 {[%emt 0:02:36]} Qb4 {[%emt 0:03:20]} 21. Qc1 {[%emt 0:05:15]} Qa5 {[%emt 0:13:07]} 22. Rc5 {[%emt 0:03:58]} Qxa2 {[%emt 0:01:31]} 23. Rxd5 {[%emt 0:01:41]} Rxd5 {[%emt 0:10:46]} 24. Bxd5 {[%emt 0:00:18]} Rd8 {[%emt 0:03:12]} 25. e4 {[%emt 0:03:41]} Rc8 {[%emt 0:00:14]} 26. Nc4 {[%emt 0:01:34]} Qxb3 {[%emt 0:03:25]} 27. e5 {[%emt 0:06:59]} Be7 {[%emt 0:02:03]} 28. Qf4 {[%emt 0:03:08]} Rf8 {[%emt 0:01:03]} 29. Ne3 {[%emt 0:02:38]} Qc3 {[%emt 0:00:45]} 30. Rb1 {[%emt 0:01:33]} g6 {[%emt 0:02:18]} 31. h4 {[%emt 0:05:41]} Bc8 {[%emt 0:02:56]} 32. Rb8 {[%emt 0:04:07]} Qc7 {[%emt 0:03:37]} 33. Ra8 {[%emt 0:00:33]} Bc5 {[%emt 0:00:36]} 34. h5 {[%emt 0:02:40]} Qe7 {[%emt 0:01:42]} 35. hxg6 {[%emt 0:01:39]} hxg6 {[%emt 0:00:07]} 36. Rxc8 {[%emt 0:02:55]} Rxc8 {[%emt 0:00:05]} 37. Qg4 {[%emt 0:00:04]} Rc7 {[%emt 0:09:14]} 38. Qxg6+ {[%emt 0:00:35]} Kf8 {[%emt 0:00:02]} 39. Qh5 {[%emt 0:01:52]} Ke8 {[%emt 0:01:59]} 40. Ng4 {[%emt 0:01:23]} Kd8 {[%emt 0:00:38]} 41. Nf6 {[%emt 0:31:53]} Kc8 {[%emt 0:04:24]} 42. Bf3 {[%emt 0:00:00]} Qd8 {[%emt 0:02:53]} 43. Qf5+ {[%emt 0:00:00]} Kb8 {[%emt 0:02:47]} 44. Qe4 {[%emt 0:00:00]} Bxf2+ {[%emt 0:02:05]} 45. Kg2 {[%emt 0:00:00]} 1-0

[Event "Ruzomberok GM 2019"]
[Site "Ruzomberok"]
[Date "2019.07.05"]
[Round "7.4"]
[White "Pacher, Milan"]
[Black "Druska, Juraj"]
[Result "1/2-1/2"]
[ECO "D35"]
[WhiteElo "2434"]
[BlackElo "2460"]
[Annotator "ChessBase"]
[PlyCount "66"]
[EventDate "2019.06.29"]
[EventType "tourn"]
[EventCountry "SVK"]
[SourceTitle "playchess.com"]
[Source "ChessBase"]
[SourceQuality "1"]
[TimeControl "40/5400+30:1800+30"]

1. d4 {[%emt 0:00:00]} d5 {[%emt 0:00:00]} 2. c4 {[%emt 0:00:00]} e6 {[%emt 0:00:00]} 3. Nc3 {[%emt 0:00:00]} Nf6 {[%emt 0:00:09]} 4. cxd5 {[%emt 0:00:00]} exd5 {[%emt 0:00:32]} 5. Bg5 {[%emt 0:00:02]} c6 {[%emt 0:00:06]} 6. e3 {[%emt 0:00:19]} Bd6 {[%emt 0:00:08]} 7. Bd3 {[%emt 0:01:15]} O-O {[%emt 0:00:08]} 8. Nf3 {[%emt 0:01:50]} Re8 {[%emt 0:00:35]} 9. Qc2 {[%emt 0:00:25]} h6 {[%emt 0:00:07]} 10. Bh4 {[%emt 0:00:05]} Nbd7 {[%emt 0:06:06]} 11. O-O-O {[%emt 0:17:35]} b5 {[%emt 0:05:12]} 12. Kb1 {[%emt 0:04:17]} a5 {[%emt 0:13:19]} 13. e4 {[%emt 0:06:50]} Be7 {[%emt 0:13:14]} 14. e5 {[%emt 0:03:31]} Nh5 {[%emt 0:00:54]} 15. Bxe7 {[%emt 0:00:30]} Rxe7 {[%emt 0:04:51]} 16. Ne2 {[%emt 0:01:21]} c5 {[%emt 0:14:10]} 17. g4 {[%emt 0:04:02]} c4 {[%emt 0:00:18]} 18. Bh7+ {[%emt 0:04:00]} Kh8 {[%emt 0:00:36]} 19. gxh5 {[%emt 0:00:06]} b4 {[%emt 0:00:09]} 20. Bf5 {[%emt 0:11:03]} a4 {[%emt 0:01:31]} 21. Nh4 {[%emt 0:02:35]} Re8 {[%emt 0:06:29]} 22. e6 {[%emt 0:03:16]} b3 {[%emt 0:02:37]} 23. Qd2 {[%emt 0:01:07]} Nf8 {[%emt 0:10:48]} 24. exf7 {[%emt 0:08:13]} Qxh4 {[%emt 0:00:06]} 25. fxe8=Q {[%emt 0:00:14]} Bxf5+ {[%emt 0:00:04]} 26. Ka1 {[%emt 0:00:08]} Rxe8 {[%emt 0:00:04]} 27. Qf4 {[%emt 0:00:22]} Qxf4 {[%emt 0:06:29]} 28. Nxf4 {[%emt 0:00:02]} c3 {[%emt 0:02:02]} 29. bxc3 {[%emt 0:02:15]} Re4 {[%emt 0:00:41]} 30. Nd3 {[%emt 0:08:41]} Re2 {[%emt 0:00:07]} 31. axb3 {[%emt 0:01:54]} axb3 {[%emt 0:00:11]} 32. Nb2 {[%emt 0:02:31]} Re8 {[%emt 0:00:21]} 33. Nd3 {[%emt 0:00:07]} Re2 {[%emt 0:00:05]} 1/2-1/2

[Event "Ruzomberok GM 2019"]
[Site "Ruzomberok"]
[Date "2019.07.05"]
[Round "7.5"]
[White "Mazur, Stefan"]
[Black "Repka, Christopher"]
[Result "0-1"]
[ECO "B50"]
[WhiteElo "2426"]
[BlackElo "2482"]
[Annotator "ChessBase"]
[PlyCount "152"]
[EventDate "2019.06.29"]
[EventType "tourn"]
[EventCountry "SVK"]
[SourceTitle "playchess.com"]
[Source "ChessBase"]
[SourceQuality "1"]
[TimeControl "40/5400+30:1800+30"]

1. e4 {[%emt 0:00:00]} c5 {[%emt 0:00:00]} 2. Nf3 {[%emt 0:00:13]} d6 {[%emt 0:00:00]} 3. Bc4 {[%emt 0:06:36]} Nf6 {[%emt 0:02:06]} 4. d3 {[%emt 0:00:17]} e6 {[%emt 0:01:01]} 5. O-O {[%emt 0:00:07]} Be7 {[%emt 0:00:09]} 6. Bb3 {[%emt 0:01:31]} O-O {[%emt 0:00:21]} 7. Re1 {[%emt 0:01:37]} Nc6 {[%emt 0:03:49]} 8. c3 {[%emt 0:01:27]} b5 {[%emt 0:00:05]} 9. d4 {[%emt 0:02:30]} Bb7 {[%emt 0:00:25]} 10. Nbd2 {[%emt 0:06:15]} cxd4 {[%emt 0:11:00]} 11. cxd4 {[%emt 0:01:39]} Nb4 {[%emt 0:00:04]} 12. Qe2 {[%emt 0:04:55]} Qb6 {[%emt 0:00:05]} 13. a3 {[%emt 0:05:53]} Nc6 {[%emt 0:00:12]} 14. e5 {[%emt 0:05:38]} dxe5 {[%emt 0:04:23]} 15. dxe5 {[%emt 0:00:15]} Ng4 {[%emt 0:00:03]} 16. Nf1 {[%emt 0:04:34]} Bc5 {[%emt 0:00:36]} 17. Be3 {[%emt 0:01:40]} Bxe3 {[%emt 0:00:25]} 18. Nxe3 {[%emt 0:00:16]} Ngxe5 {[%emt 0:00:04]} 19. Nxe5 {[%emt 0:05:07]} Nxe5 {[%emt 0:00:47]} 20. Nd5 {[%emt 0:00:10]} Bxd5 {[%emt 0:02:00]} 21. Bxd5 {[%emt 0:00:19]} Rad8 {[%emt 0:00:07]} 22. Qxe5 {[%emt 0:09:40]} Rxd5 {[%emt 0:00:06]} 23. Qe3 {[%emt 0:00:34]} Qxe3 {[%emt 0:04:30]} 24. Rxe3 {[%emt 0:00:06]} Rc8 {[%emt 0:03:10]} 25. h4 {[%emt 0:05:42]} a5 {[%emt 0:01:19]} 26. g3 {[%emt 0:05:15]} Rc2 {[%emt 0:00:17]} 27. Rc3 {[%emt 0:05:53]} Rxc3 {[%emt 0:01:25]} 28. bxc3 {[%emt 0:00:02]} Kf8 {[%emt 0:01:19]} 29. a4 {[%emt 0:04:22]} Ke7 {[%emt 0:00:13]} 30. Kf1 {[%emt 0:03:05]} Kd6 {[%emt 0:03:19]} 31. axb5 {[%emt 0:00:59]} Rxb5 {[%emt 0:00:05]} 32. Ke2 {[%emt 0:00:14]} Kc6 {[%emt 0:03:57]} 33. Ra2 {[%emt 0:03:16]} Re5+ {[%emt 0:01:00]} 34. Kd3 {[%emt 0:00:08]} Rd5+ {[%emt 0:00:06]} 35. Kc4 {[%emt 0:00:50]} e5 {[%emt 0:00:14]} 36. Ra1 {[%emt 0:08:05]} f5 {[%emt 0:01:46]} 37. Ra2 {[%emt 0:01:02]} g6 {[%emt 0:00:51]} 38. Ra1 {[%emt 0:00:11]} Rb5 {[%emt 0:03:28]} 39. Ra2 {[%emt 0:01:25]} Rc5+ {[%emt 0:01:48]} 40. Kd3 {[%emt 0:00:10]} Rd5+ {[%emt 0:00:04]} 41. Kc4 {[%emt 0:33:46]} e4 {[%emt 0:30:12]} 42. Ra1 {[%emt 0:00:00]} Rb5 {[%emt 0:00:00]} 43. Kd4 {[%emt 0:00:00]} Kb6 {[%emt 0:00:00]} 44. Ra2 {[%emt 0:00:00]} Rb1 {[%emt 0:00:00]} 45. c4 {[%emt 0:00:00]} Rb3 {[%emt 0:00:00]} 46. Ke5 {[%emt 0:00:00]} e3 {[%emt 0:00:00]} 47. fxe3 {[%emt 0:00:00]} Rxe3+ {[%emt 0:00:00]} 48. Kd4 {[%emt 0:00:00]} Rxg3 {[%emt 0:00:00]} 49. Re2 {[%emt 0:00:00]} Rg4+ {[%emt 0:00:00]} 50. Kd5 {[%emt 0:00:00]} Re4 {[%emt 0:00:00]} 51. Rb2+ {[%emt 0:00:00]} Kc7 {[%emt 0:00:00]} 52. Rb5 {[%emt 0:00:00]} Rxh4 {[%emt 0:00:00]} 53. Rxa5 {[%emt 0:00:00]} Rh1 {[%emt 0:00:00]} 54. Kc5 {[%emt 0:01:03]} Rb1 {[%emt 0:00:00]} 55. Ra6 {[%emt 0:01:29]} Kd7 {[%emt 0:00:00]} 56. Kd5 {[%emt 0:03:14]} Rd1+ {[%emt 0:00:00]} 57. Ke5 {[%emt 0:00:02]} Re1+ {[%emt 0:00:00]} 58. Kd5 {[%emt 0:01:21]} f4 {[%emt 0:00:00]} 59. Ra7+ {[%emt 0:00:16]} Ke8 {[%emt 0:00:00]} 60. Ra3 {[%emt 0:04:24]} g5 {[%emt 0:00:00]} 61. c5 {[%emt 0:00:02]} g4 {[%emt 0:00:00]} 62. Ra8+ {[%emt 0:00:26]} Kf7 {[%emt 0:00:00]} 63. Ra4 {[%emt 0:00:03]} h5 {[%emt 0:01:48]} 64. Rxf4+ {[%emt 0:01:04]} Ke7 {[%emt 0:00:03]} 65. Rf5 {[%emt 0:01:18]} g3 {[%emt 0:00:04]} 66. Rg5 {[%emt 0:00:06]} h4 {[%emt 0:00:04]} 67. c6 {[%emt 0:00:29]} h3 {[%emt 0:01:12]} 68. Rg7+ {[%emt 0:01:30]} Kd8 {[%emt 0:00:12]} 69. c7+ {[%emt 0:00:45]} Kc8 {[%emt 0:00:05]} 70. Kd6 {[%emt 0:00:05]} Rd1+ {[%emt 0:00:38]} 71. Kc6 {[%emt 0:00:02]} Rc1+ {[%emt 0:00:08]} 72. Kd6 {[%emt 0:00:02]} g2 {[%emt 0:00:35]} 73. Rg8+ {[%emt 0:00:24]} Kb7 {[%emt 0:00:13]} 74. Rb8+ {[%emt 0:02:24]} Ka7 {[%emt 0:00:12]} 75. Rg8 {[%emt 0:00:40]} h2 {[%emt 0:00:26]} 76. Rg7 {[%emt 0:00:35]} Kb7 {[%emt 0:00:14]} 0-1

[Event "Ruzomberok GM 2019"]
[Site "Ruzomberok"]
[Date "2019.07.06"]
[Round "8.1"]
[White "Jurcik, Marian"]
[Black "Repka, Christopher"]
[Result "1-0"]
[ECO "C55"]
[WhiteElo "2501"]
[BlackElo "2488"]
[Annotator "ChessBase"]
[PlyCount "66"]
[EventDate "2019.06.29"]
[EventType "tourn"]
[EventCountry "SVK"]
[SourceTitle "playchess.com"]
[Source "ChessBase"]
[SourceQuality "1"]
[TimeControl "40/5400+30:1800+30"]

1. e4 {[%emt 0:00:00]} e5 {[%emt 0:00:12]} 2. Bc4 {[%emt 0:00:41]} Nf6 {[%emt 0:00:55]} 3. d3 {[%emt 0:00:16]} Nc6 {[%emt 0:00:20]} 4. Nf3 {[%emt 0:00:16]} h6 {[%emt 0:00:26]} 5. c3 {[%emt 0:01:14]} d6 {[%emt 0:06:36]} 6. Nbd2 {[%emt 0:00:13]} g5 {[%emt 0:01:57]} 7. Nf1 {[%emt 0:00:07]} g4 {[%emt 0:01:53]} 8. N3d2 {[%emt 0:00:13]} h5 {[%emt 0:00:07]} 9. Ne3 {[%emt 0:01:18]} Bh6 {[%emt 0:00:40]} 10. Ndf1 {[%emt 0:04:40]} Be6 {[%emt 0:06:04]} 11. Qb3 {[%emt 0:07:38]} Qc8 {[%emt 0:07:31]} 12. Ng3 {[%emt 0:26:40]} Ne7 {[%emt 0:14:36]} 13. d4 {[%emt 0:04:55]} h4 {[%emt 0:05:30]} 14. Bxe6 {[%emt 0:03:42]} fxe6 {[%emt 0:07:00]} 15. dxe5 {[%emt 0:04:48]} dxe5 {[%emt 0:04:20]} 16. Ne2 {[%emt 0:03:41]} Qd7 {[%emt 0:05:38]} 17. Qxb7 {[%emt 0:10:45]} O-O {[%emt 0:00:14]} 18. O-O {[%emt 0:00:16]} Qd3 {[%emt 0:06:42]} 19. Qxc7 {[%emt 0:11:59]} Qxe2 {[%emt 0:03:28]} 20. Qxe7 {[%emt 0:00:02]} Rae8 {[%emt 0:01:28]} 21. Qb4 {[%emt 0:01:43]} g3 {[%emt 0:02:33]} 22. Qc4 {[%emt 0:01:07]} gxh2+ {[%emt 0:01:58]} 23. Kh1 {[%emt 0:03:35]} Qh5 {[%emt 0:02:17]} 24. f3 {[%emt 0:00:37]} Rf7 {[%emt 0:01:14]} 25. Ng4 {[%emt 0:02:05]} Nxg4 {[%emt 0:05:08]} 26. fxg4 {[%emt 0:00:05]} Rxf1+ {[%emt 0:00:03]} 27. Qxf1 {[%emt 0:00:03]} Qg6 {[%emt 0:00:05]} 28. Bxh6 {[%emt 0:00:20]} Qxh6 {[%emt 0:00:03]} 29. Qe2 {[%emt 0:01:20]} Rd8 {[%emt 0:01:32]} 30. Rf1 {[%emt 0:02:19]} h3 {[%emt 0:00:09]} 31. g3 {[%emt 0:04:55]} Qd2 {[%emt 0:00:24]} 32. Qf2 {[%emt 0:00:28]} Qg5 {[%emt 0:00:20]} 33. Qf7+ {[%emt 0:00:32]} Kh8 {[%emt 0:00:05]} 1-0

[Event "Ruzomberok GM 2019"]
[Site "Ruzomberok"]
[Date "2019.07.06"]
[Round "8.2"]
[White "Druska, Juraj"]
[Black "Mazur, Stefan"]
[Result "0-1"]
[ECO "C47"]
[WhiteElo "2460"]
[BlackElo "2426"]
[Annotator "ChessBase"]
[PlyCount "100"]
[EventDate "2019.06.29"]
[EventType "tourn"]
[EventCountry "SVK"]
[SourceTitle "playchess.com"]
[Source "ChessBase"]
[SourceQuality "1"]
[TimeControl "40/5400+30:1800+30"]

1. e4 {[%emt 0:03:01]} e5 {[%emt 0:00:00]} 2. Nf3 {[%emt 0:00:15]} Nc6 {[%emt 0:00:00]} 3. Nc3 {[%emt 0:00:03]} Nf6 {[%emt 0:02:07]} 4. d4 {[%emt 0:00:05]} exd4 {[%emt 0:00:14]} 5. Nxd4 {[%emt 0:00:06]} Bb4 {[%emt 0:01:29]} 6. Nxc6 {[%emt 0:00:07]} bxc6 {[%emt 0:00:05]} 7. Bd3 {[%emt 0:00:05]} d5 {[%emt 0:00:26]} 8. exd5 {[%emt 0:00:05]} O-O {[%emt 0:00:13]} 9. O-O {[%emt 0:00:04]} cxd5 {[%emt 0:03:05]} 10. Bg5 {[%emt 0:00:26]} c6 {[%emt 0:00:06]} 11. Qf3 {[%emt 0:00:05]} Be7 {[%emt 0:05:19]} 12. h3 {[%emt 0:00:16]} h6 {[%emt 0:01:23]} 13. Bf4 {[%emt 0:00:04]} Bd6 {[%emt 0:05:05]} 14. Rfe1 {[%emt 0:00:06]} Rb8 {[%emt 0:04:43]} 15. b3 {[%emt 0:01:00]} Be6 {[%emt 0:03:25]} 16. Rad1 {[%emt 0:00:44]} Bxf4 {[%emt 0:08:08]} 17. Qxf4 {[%emt 0:00:19]} Qa5 {[%emt 0:08:27]} 18. Na4 {[%emt 0:05:07]} Rfd8 {[%emt 0:01:06]} 19. Qe3 {[%emt 0:20:57]} Nd7 {[%emt 0:01:58]} 20. f4 {[%emt 0:01:01]} Nf6 {[%emt 0:00:33]} 21. Qc5 {[%emt 0:41:56]} Qc7 {[%emt 0:03:50]} 22. f5 {[%emt 0:03:36]} Bd7 {[%emt 0:00:24]} 23. Re7 {[%emt 0:00:11]} Re8 {[%emt 0:01:08]} 24. Rde1 {[%emt 0:00:07]} Rxe7 {[%emt 0:22:07]} 25. Rxe7 {[%emt 0:00:01]} Re8 {[%emt 0:00:11]} 26. Rxe8+ {[%emt 0:04:37]} Bxe8 {[%emt 0:00:39]} 27. Qe3 {[%emt 0:00:22]} Bd7 {[%emt 0:06:39]} 28. Nc5 {[%emt 0:00:34]} Bc8 {[%emt 0:02:32]} 29. b4 {[%emt 0:02:49]} Kf8 {[%emt 0:01:05]} 30. c3 {[%emt 0:00:50]} h5 {[%emt 0:05:52]} 31. Nb3 {[%emt 0:04:57]} Qe7 {[%emt 0:00:35]} 32. Kf2 {[%emt 0:01:32]} Qxe3+ {[%emt 0:04:26]} 33. Kxe3 {[%emt 0:00:01]} Ke7 {[%emt 0:00:08]} 34. Kf4 {[%emt 0:02:43]} Kd6 {[%emt 0:00:02]} 35. a3 {[%emt 0:00:12]} Bd7 {[%emt 0:01:42]} 36. Nd4 {[%emt 0:04:19]} Be8 {[%emt 0:00:50]} 37. Nb3 {[%emt 0:02:17]} Nd7 {[%emt 0:00:30]} 38. c4 {[%emt 0:00:39]} c5 {[%emt 0:00:54]} 39. cxd5 {[%emt 0:00:37]} cxb4 {[%emt 0:05:40]} 40. axb4 {[%emt 0:00:02]} Nb6 {[%emt 0:00:18]} 41. f6 {[%emt 0:15:10]} Nxd5+ {[%emt 0:02:18]} 42. Kg5 {[%emt 0:00:05]} Nxf6 {[%emt 0:11:07]} 43. Nd4 {[%emt 0:00:09]} Ke5 {[%emt 0:01:03]} 44. Nb5 {[%emt 0:16:02]} Nd5 {[%emt 0:07:15]} 45. Bc4 {[%emt 0:03:18]} f6+ {[%emt 0:04:25]} 46. Kh4 {[%emt 0:00:00]} Kf4 {[%emt 0:02:29]} 47. g3+ {[%emt 0:00:21]} Ke5 {[%emt 0:00:29]} 48. g4 {[%emt 0:00:48]} Kf4 {[%emt 0:00:07]} 49. gxh5 {[%emt 0:00:38]} Ne3 {[%emt 0:00:05]} 50. Nd6 {[%emt 0:00:14]} Ng2# 0-1